fUST/lending_fUST_20250718
["ID","MTS","AMOUNT","RATE_DAILY","PERIOD"]
[372880765,1752791366500,-460.0,0.00017048,2]
[372880766,1752791366523,-460.0,0.00017048,2]
[372880767,1752791366549,-460.0,0.00017048,2]
[372880768,1752791366573,-1340.68,0.00017048,2]
[372880769,1752791366597,-460.0,0.00017048,2]
[372880770,1752791366620,-884.3,0.00017048,2]
[372880771,1752791366642,-495.78,0.00017048,2]
[372880772,1752791366665,-460.0,0.00017048,2]
[372880773,1752791366687,-460.0,0.00017048,2]
[372880774,1752791366713,-460.0,0.00017048,2]
[372880775,1752791366736,-2939.62,0.00017048,2]
[372880776,1752791366758,-460.0,0.00017048,2]
[372880777,1752791366780,-460.0,0.00017048,2]
[372880778,1752791366801,-460.0,0.00017048,2]
[372880779,1752791366823,-460.0,0.00017048,2]
[372880780,1752791366844,-460.0,0.00017048,2]
[372880781,1752791366867,-460.0,0.00017048,2]
[372880782,1752791366888,-460.0,0.00017048,2]
[372880783,1752791366911,-678.92,0.00017048,2]
[372880784,1752791366932,-466.18298713,0.00017048,2]
[372880785,1752791366956,-460.0,0.00017048,2]
[372880786,1752791366978,-460.0,0.00017048,2]
[372880787,1752791367000,-460.0,0.00017048,2]
[372880788,1752791367022,-460.0,0.00017048,2]
[372880789,1752791367043,-460.0,0.00017048,2]
[372880790,1752791367064,-460.0,0.00017048,2]
[372880791,1752791367086,-460.0,0.00017048,2]
[372880792,1752791367111,-460.0,0.00017048,2]
[372880793,1752791367134,-460.0,0.00017048,2]
[372880794,1752791367157,-460.0,0.00017048,2]
[372880795,1752791367182,-2148.08,0.00017048,2]
[372880796,1752791367209,-1518.61,0.00017048,2]
[372880797,1752791367233,-493.51,0.00017048,2]
[372880798,1752791367257,-460.0,0.00017048,2]
[372880799,1752791367280,-482.4,0.00017048,2]
[372880800,1752791367303,-460.0,0.00017048,2]
[372880801,1752791367326,-460.0,0.00017048,2]
[372880802,1752791367350,-460.0,0.00017048,2]
[372880803,1752791367373,-460.0,0.00017048,2]
[372880804,1752791367396,-720.78,0.00017048,2]
[372880805,1752791367419,-1521.8,0.00017048,2]
[372880806,1752791367441,-460.0,0.00017048,2]
[372880807,1752791367464,-460.0,0.00017048,2]
[372880808,1752791367487,-556.21,0.00017048,2]
[372880809,1752791367509,-513.87,0.00017048,2]
[372880810,1752791367531,-283.69,0.00017048,2]
[372880811,1752791367555,-460.0,0.00017048,2]
[372880812,1752791367578,-460.0,0.00017048,2]
[372880813,1752791367699,-460.0,0.00017048,2]
[372880814,1752791367724,-460.0,0.00017048,2]
[372880815,1752791367747,-460.0,0.00017048,2]
[372880816,1752791367771,-743.51,0.00017048,2]
[372880817,1752791367792,-281.82270609,0.00017048,2]
[372880818,1752791367815,-643.68,0.00017048,2]
[372880819,1752791367839,-460.0,0.00017048,2]
[372880820,1752791367861,-460.0,0.00017049,2]
[372880821,1752791367884,-460.0,0.00017049,2]
[372880822,1752791367906,-460.0,0.00017049,2]
[372880823,1752791367928,-297.8307181,0.00017049,2]
[372880824,1752791367953,-768.78,0.00017049,2]
[372880825,1752791367975,-460.0,0.00017049,2]
[372880826,1752791367998,-538.7904585,0.00017049,2]
[372880827,1752791368021,-43.2090937,0.00017049,2]
[372880828,1752791368199,-460.0,0.00016502,2]
[372880829,1752791368221,-513.86063935,0.00016776,2]
[372880830,1752791368244,-416.7909063,0.00017049,2]
[372880831,1752791368268,-460.0,0.00017049,2]
[372880832,1752791368291,-460.0,0.00017049,2]
[372880833,1752791368315,-23.09468917,0.00017049,2]
[372880834,1752791368380,-827.97,0.000165,2]
[372880835,1752791368406,-1621.63531083,0.00017049,2]
[372880836,1752791368432,-1017.58,0.00017049,2]
[372880837,1752791368457,-460.0,0.00017049,2]
[372880838,1752791368482,-460.0,0.00017049,2]
[372880839,1752791368505,-626.49,0.00017049,2]
[372880840,1752791368531,-901.81,0.00017049,2]
[372880841,1752791368554,-460.0,0.00017049,2]
[372880842,1752791368576,-460.0,0.00017049,2]
[372880843,1752791368599,-3044.32,0.00017049,2]
[372880844,1752791368621,-460.0,0.00017049,2]
[372880845,1752791368646,-1223.07,0.00017049,2]
[372880846,1752791368668,-460.0,0.0001705,2]
[372880847,1752791368690,-460.0,0.0001705,2]
[372880848,1752791368713,-460.0,0.0001705,2]
[372880849,1752791368736,-460.0,0.0001705,2]
[372880850,1752791368760,-460.0,0.0001705,2]
[372880851,1752791368784,-460.0,0.0001705,2]
[372880852,1752791368806,-460.0,0.0001705,2]
[372880853,1752791368829,-460.0,0.0001705,2]
[372880854,1752791368853,-460.0,0.0001705,2]
[372880855,1752791368876,-460.0,0.0001705,2]
[372880856,1752791368899,-460.0,0.0001705,2]
[372880857,1752791368921,-460.0,0.0001705,2]
[372880858,1752791368944,-38.34182947,0.0001705,2]
[372880859,1752791368980,-827.97,0.00016774,2]
[372880860,1752791369002,-421.65817053,0.0001705,2]
[372880861,1752791369023,-460.0,0.0001705,2]
[372880862,1752791369045,-460.0,0.0001705,2]
[372880863,1752791369274,-460.0,0.0001705,2]
[372880864,1752791369296,-460.0,0.0001705,2]
[372880865,1752791369318,-460.0,0.0001705,2]
[372880866,1752791369340,-574.67,0.0001705,2]
[372880867,1752791369363,-460.0,0.0001705,2]
[372880868,1752791369393,-460.0,0.0001705,2]
[372880869,1752791369418,-460.0,0.0001705,2]
[372880870,1752791369439,-224.22990729,0.0001705,2]
[372880871,1752791369463,-460.0,0.0001705,2]
[372880872,1752791369485,-460.0,0.0001705,2]
[372880873,1752791369508,-460.0,0.0001705,2]
[372880874,1752791369530,-460.0,0.0001705,2]
[372880875,1752791369552,-460.0,0.0001705,2]
[372880876,1752791369574,-460.0,0.0001705,2]
[372880877,1752791369599,-460.0,0.0001705,2]
[372880878,1752791369619,-180.01716256,0.0001705,2]
[372880879,1752791369640,-460.0,0.0001705,2]
[372880880,1752791369661,-460.0,0.0001705,2]
[372880881,1752791369681,-460.0,0.0001705,2]
[372880882,1752791369703,-460.0,0.0001705,2]
[372880883,1752791369726,-460.0,0.0001705,2]
[372880884,1752791369747,-460.0,0.0001705,2]
[372880885,1752791369769,-460.0,0.0001705,2]
[372880886,1752791369790,-461.84,0.0001705,2]
[372880887,1752791369813,-3218.94,0.0001705,2]
[372880888,1752791369834,-460.0,0.0001705,2]
[372880889,1752791369857,-752.49,0.0001705,2]
[372880890,1752791369878,-460.0,0.0001705,2]
[372880891,1752791369900,-460.0,0.0001705,2]
[372880892,1752791369920,-460.0,0.0001705,2]
[372880893,1752791369940,-470.40507623,0.0001705,2]
[372880894,1752791369962,-460.0,0.00017053,2]
[372880895,1752791369982,-460.0,0.00017053,2]
[372880896,1752791370006,-460.0,0.00017054,2]
[372880897,1752791370028,-460.0,0.00017054,2]
[372880898,1752791370048,-460.0,0.00017054,2]
[372880899,1752791370069,-460.0,0.00017054,2]
[372880900,1752791370090,-460.0,0.00017054,2]
[372880901,1752791370113,-170.81692496,0.00017073,2]
[372880902,1752791370133,-155.12534803,0.00017073,2]
[372880903,1752791370153,-500.0,0.00017073,2]
[372880904,1752791370173,-500.0,0.00017073,2]
[372880905,1752791370195,-551.03922464,0.00017073,2]
[372880906,1752791370314,-501.02754054,0.00017073,2]
[372880907,1752791370336,-1000.0,0.00017226,2]
[372880908,1752791370357,-162.78318151,0.00017228,2]
[372880909,1752791370377,-1000.0,0.00017321,2]
[372880910,1752791370398,-841.91460913,0.00017321,2]
[372880911,1752791370418,-501.05616318,0.00017321,2]
[372880912,1752791370438,-1000.0,0.00017321,2]
[372880913,1752791370459,-500.0,0.00017321,2]
[372880914,1752791370479,-1000.0,0.00017321,2]
[372880915,1752791370499,-1000.0,0.00017321,2]
[372880916,1752791370519,-1000.0,0.00017321,2]
[372880917,1752791370540,-1000.0,0.00017321,2]
[372880918,1752791370560,-1082.41468936,0.00017321,2]
[372880919,1752791370580,-379.58287166,0.00017321,2]
[372880920,1752791370600,-397.53000504,0.00017321,2]
[372880921,1752791370620,-460.0,0.00017321,2]
[372880922,1752791370641,-460.0,0.00017322,2]
[372880923,1752791370660,-540.0,0.00017322,2]
[372880924,1752791370682,-460.00191781,0.00017322,2]
[372880925,1752791370706,-460.0,0.00017322,2]
[372880926,1752791370727,-460.0,0.00017322,2]
[372880927,1752791370748,-460.0,0.00017322,2]
[372880928,1752791370769,-460.0,0.00017322,2]
[372880929,1752791370789,-460.0,0.00017322,2]
[372880930,1752791370810,-460.0,0.00017322,2]
[372880931,1752791370831,-460.0,0.00017322,2]
[372880932,1752791370854,-460.0,0.00017322,2]
[372880933,1752791370878,-1340.68,0.00017322,2]
[372880934,1752791370901,-460.0,0.00017322,2]
[372880935,1752791370922,-460.0,0.00017322,2]
[372880936,1752791370945,-460.0,0.00017322,2]
[372880937,1752791370967,-460.0,0.00017322,2]
[372880938,1752791370989,-2939.62,0.00017322,2]
[372880939,1752791371011,-200.19957865,0.00017322,2]
[372880940,1752791371032,-460.0,0.00017322,2]
[372880941,1752791371054,-460.0,0.00017322,2]
[372880942,1752791371075,-460.0,0.00017322,2]
[372880943,1752791371098,-460.0,0.00017322,2]
[372880944,1752791371125,-460.0,0.00017322,2]
[372880945,1752791371148,-678.92,0.00017322,2]
[372880946,1752791371169,-460.0,0.00017322,2]
[372880947,1752791371190,-460.0,0.00017322,2]
[372880948,1752791371213,-460.0,0.00017322,2]
[372880949,1752791371234,-460.0,0.00017322,2]
[372880950,1752791371256,-460.0,0.00017322,2]
[372880951,1752791371277,-460.0,0.00017322,2]
[372880952,1752791371296,-460.0,0.00017322,2]
[372880953,1752791371318,-460.0,0.00017322,2]
[372880954,1752791371338,-460.0,0.00017322,2]
[372880955,1752791371358,-468.47513244,0.00017322,2]
[372880956,1752791371379,-2148.08,0.00017322,2]
[372880957,1752791371401,-1518.61,0.00017322,2]
[372880958,1752791371422,-493.51,0.00017322,2]
[372880959,1752791371447,-460.0,0.00017322,2]
[372880960,1752791371478,-482.4,0.00017322,2]
[372880961,1752791371503,-460.0,0.00017322,2]
[372880962,1752791371532,-460.0,0.00017322,2]
[372880963,1752791371561,-460.0,0.00017322,2]
[372880964,1752791371590,-720.78,0.00017322,2]
[372880965,1752791371622,-1521.8,0.00017322,2]
[372880966,1752791371648,-460.0,0.00017322,2]
[372880967,1752791371675,-460.0,0.00017322,2]
[372880968,1752791371703,-556.21,0.00017322,2]
[372880969,1752791371730,-513.87,0.00017322,2]
[372880970,1752791371755,-460.0,0.00017322,2]
[372880971,1752791371781,-460.0,0.00017322,2]
[372880972,1752791371809,-460.0,0.00017322,2]
[372880973,1752791371838,-460.0,0.00017322,2]
[372880974,1752791371866,-460.0,0.00017322,2]
[372880975,1752791371894,-743.51,0.00017322,2]
[372880976,1752791371918,-643.68,0.00017322,2]
[372880977,1752791371947,-460.0,0.00017322,2]
[372880978,1752791371973,-460.0,0.00017323,2]
[372880979,1752791371999,-460.0,0.00017323,2]
[372880980,1752791372025,-460.0,0.00017323,2]
[372880981,1752791372051,-768.78,0.00017323,2]
[372880982,1752791372075,-460.0,0.00017323,2]
[372880983,1752791372100,-460.0,0.00017323,2]
[372880984,1752791372129,-460.0,0.00017323,2]
[372880985,1752791372155,-1644.73,0.00017323,2]
[372880986,1752791372182,-1017.58,0.00017323,2]
[372880987,1752791372209,-460.0,0.00017323,2]
[372880988,1752791372235,-626.49,0.00017323,2]
[372880989,1752791372262,-901.81,0.00017323,2]
[372880990,1752791372289,-460.0,0.00017323,2]
[372880991,1752791372315,-460.0,0.00017323,2]
[372880992,1752791372342,-3044.32,0.00017323,2]
[372880993,1752791372367,-460.0,0.00017323,2]
[372880994,1752791372393,-1223.07,0.00017323,2]
[372880995,1752791372421,-460.0,0.00017324,2]
[372880996,1752791372445,-460.0,0.00017324,2]
[372880997,1752791372470,-460.0,0.00017324,2]
[372880998,1752791372495,-460.0,0.00017324,2]
[372880999,1752791372520,-460.0,0.00017324,2]
[372881000,1752791372545,-460.0,0.00017324,2]
[372881001,1752791372571,-460.0,0.00017324,2]
[372881002,1752791372596,-460.0,0.00017324,2]
[372881003,1752791372617,-460.0,0.00017324,2]
[372881004,1752791372637,-460.0,0.00017324,2]
[372881005,1752791372659,-460.0,0.00017324,2]
[372881006,1752791372683,-460.0,0.00017324,2]
[372881007,1752791372706,-460.0,0.00017324,2]
[372881008,1752791372728,-460.0,0.00017324,2]
[372881009,1752791372749,-574.67,0.00017324,2]
[372881010,1752791372770,-460.0,0.00017324,2]
[372881011,1752791372792,-460.0,0.00017324,2]
[372881012,1752791372973,-460.0,0.00017324,2]
[372881013,1752791373006,-460.0,0.00017324,2]
[372881014,1752791373028,-460.0,0.00017324,2]
[372881015,1752791373050,-460.0,0.00017324,2]
[372881016,1752791373071,-460.0,0.00017324,2]
[372881017,1752791373094,-460.0,0.00017324,2]
[372881018,1752791373123,-460.0,0.00017324,2]
[372881019,1752791373145,-460.0,0.00017324,2]
[372881020,1752791373168,-460.0,0.00017324,2]
[372881021,1752791373191,-467.18557456,0.00017324,2]
[372881022,1752791373217,-460.0,0.00017324,2]
[372881023,1752791373241,-460.0,0.00017324,2]
[372881024,1752791373264,-460.0,0.00017324,2]
[372881025,1752791373287,-461.84,0.00017324,2]
[372881026,1752791373311,-3218.94,0.00017324,2]
[372881027,1752791373333,-460.0,0.00017324,2]
[372881028,1752791373356,-752.49,0.00017324,2]
[372881029,1752791373379,-460.0,0.00017324,2]
[372881030,1752791373400,-466.38605832,0.00017324,2]
[372881031,1752791373422,-460.0,0.00017327,2]
[372881032,1752791373444,-460.0,0.00017327,2]
[372881033,1752791373466,-460.0,0.00017328,2]
[372881034,1752791373491,-460.0,0.00017328,2]
[372881035,1752791373513,-460.0,0.00017328,2]
[372881036,1752791373535,-460.0,0.00017328,2]
[372881037,1752791373556,-198.99851668,0.00017373,2]
[372881038,1752791373577,-150.33956401,0.00017373,2]
[372881039,1752791373597,-158.52082031,0.00017373,2]
[372881040,1752791373618,-170.12682602,0.00017373,2]
[372881041,1752791373639,-158.11686192,0.00017373,2]
[372881042,1752791373661,-500.0,0.00017373,2]
[372881043,1752791373682,-500.0,0.00017373,2]
[372881044,1752791373703,-500.0,0.00017373,2]
[372881045,1752791373724,-374.34019464,0.00017373,2]
[372881046,1752791373745,-500.0,0.00017373,2]
[372881047,1752791373765,-500.11778428,0.00017373,2]
[372881048,1752791373786,-500.0,0.00017431,2]
[372881049,1752791373807,-500.0,0.00017431,2]
[372881050,1752791373828,-500.0,0.00017431,2]
[372881051,1752791373849,-504.03860257,0.00017431,2]
[372881052,1752791373870,-350.0,0.00017509,2]
[372881053,1752791373891,-3201.8465953,0.00017551,2]
[372881054,1752791373913,-460.0,0.00017595,2]
[372881055,1752791373934,-460.0,0.00017596,2]
[372881056,1752791373956,-460.0,0.00017596,2]
[372881057,1752791373978,-460.0,0.00017596,2]
[372881058,1752791373999,-460.0,0.00017596,2]
[372881059,1752791374021,-460.0,0.00017596,2]
[372881060,1752791374042,-460.0,0.00017596,2]
[372881061,1752791374063,-460.0,0.00017596,2]
[372881062,1752791374086,-460.0,0.00017596,2]
[372881063,1752791374114,-1340.68,0.00017596,2]
[372881064,1752791374137,-460.0,0.00017596,2]
[372881065,1752791374160,-460.0,0.00017596,2]
[372881066,1752791374182,-460.0,0.00017596,2]
[372881067,1752791374204,-460.0,0.00017596,2]
[372881068,1752791374228,-2939.62,0.00017596,2]
[372881069,1752791374252,-460.0,0.00017596,2]
[372881070,1752791374275,-460.0,0.00017596,2]
[372881071,1752791374295,-371.29404419,0.00017596,2]
[372881072,1752791374317,-460.0,0.00017596,2]
[372881073,1752791374339,-678.92,0.00017596,2]
[372881074,1752791374360,-304.71,0.00017596,2]
[372881075,1752791374382,-160.84955277,0.00017596,2]
[372881076,1752791374403,-460.0,0.00017596,2]
[372881077,1752791374424,-460.0,0.00017596,2]
[372881078,1752791374446,-460.0,0.00017596,2]
[372881079,1752791374467,-460.0,0.00017596,2]
[372881080,1752791374488,-460.0,0.00017596,2]
[372881081,1752791374510,-2148.08,0.00017596,2]
[372881082,1752791374533,-1404.25829627,0.00017596,2]
[372881083,1752791375215,-460.0,0.00016499,2]
[372881084,1752791375236,-460.0,0.00016499,2]
[372881085,1752791375257,-460.0,0.00016499,2]
[372881086,1752791375280,-460.0,0.00016499,2]
[372881087,1752791375305,-460.0,0.000165,2]
[372881088,1752791375327,-460.0,0.000165,2]
[372881089,1752791375349,-460.0,0.00016501,2]
[372881090,1752791375369,-460.0,0.00016502,2]
[372881091,1752791375393,-460.0,0.00016502,2]
[372881092,1752791375416,-460.0,0.00016773,2]
[372881093,1752791375437,-460.0,0.00016773,2]
[372881094,1752791375458,-460.0,0.00016773,2]
[372881095,1752791375481,-460.0,0.00016773,2]
[372881096,1752791375504,-460.0,0.00016774,2]
[372881097,1752791375526,-460.0,0.00016774,2]
[372881098,1752791375548,-460.0,0.00016776,2]
[372881099,1752791375572,-464.39187266,0.00016776,2]
[372881100,1752791375677,-460.0,0.00017047,2]
[372881101,1752791375725,-460.0,0.00017047,2]
[372881102,1752791375748,-460.0,0.00017047,2]
[372881103,1752791375772,-827.97,0.00017048,2]
[372881104,1752791375794,-460.0,0.00017048,2]
[372881105,1752791375815,-460.0,0.00017048,2]
[372881106,1752791375835,-460.0,0.0001705,2]
[372881107,1752791375859,-827.97,0.00017322,2]
[372881108,1752791375882,-460.0,0.00017322,2]
[372881109,1752791375903,-460.0,0.00017322,2]
[372881110,1752791375924,-124.0653385,0.00017324,2]
[372881120,1752791419780,150.0,0.00015541,2]
[372881121,1752791422209,150.0,0.00017635,30]
[372881134,1752791431965,-300.0,0.00016498,2]
[372881136,1752791431975,-460.0,0.00016499,2]
[372881137,1752791431985,-1232.91,0.00016499,2]
[372881139,1752791431994,-460.0,0.00016499,2]
[372881141,1752791432004,-408.80215068,0.00016499,2]
[372881142,1752791432013,-460.0,0.00016499,2]
[372881144,1752791432022,-460.0,0.00016499,2]
[372881145,1752791432032,-417.74295782,0.000165,2]
[372881157,1752791438021,-42.25704218,0.000165,2]
[372881158,1752791438031,-462.24747764,0.000165,2]
[372881159,1752791438041,-491.62,0.000165,2]
[372881160,1752791438051,-460.0,0.000165,2]
[372881161,1752791438060,-460.0,0.000165,2]
[372881162,1752791438070,-460.0,0.000165,2]
[372881163,1752791438079,-460.0,0.000165,2]
[372881164,1752791438089,-2715.03,0.000165,2]
[372881165,1752791438099,-460.0,0.000165,2]
[372881166,1752791438109,-460.0,0.000165,2]
[372881167,1752791438119,-311.49285654,0.000165,2]
[372881168,1752791438129,-585.93,0.000165,2]
[372881169,1752791438142,-460.0,0.000165,2]
[372881170,1752791438152,-8938.03,0.000165,2]
[372881171,1752791438164,-464.59368521,0.000165,2]
[372881172,1752791438175,-460.0,0.000165,2]
[372881173,1752791438184,-460.0,0.000165,2]
[372881174,1752791438194,-460.0,0.000165,2]
[372881175,1752791438204,-460.0,0.000165,2]
[372881176,1752791438215,-460.0,0.000165,2]
[372881177,1752791438225,-460.0,0.000165,2]
[372881178,1752791438235,-460.0,0.00016501,2]
[372881179,1752791438244,-460.0,0.00016501,2]
[372881180,1752791438255,-460.0,0.00016502,2]
[372881181,1752791438265,-460.0,0.00016502,2]
[372881182,1752791438274,-460.0,0.00016502,2]
[372881183,1752791438284,-852.82,0.00016502,2]
[372881184,1752791438293,-460.0,0.00016502,2]
[372881185,1752791438302,-460.0,0.00016502,2]
[372881186,1752791438311,-460.0,0.00016502,2]
[372881187,1752791438322,-460.0,0.00016502,2]
[372881188,1752791438331,-460.0,0.00016502,2]
[372881189,1752791438340,-460.0,0.00016502,2]
[372881190,1752791438350,-460.0,0.00016502,2]
[372881191,1752791438359,-460.0,0.00016502,2]
[372881192,1752791438369,-460.0,0.00016502,2]
[372881193,1752791438378,-500.0,0.00016573,2]
[372881194,1752791438387,-508.09913005,0.00016573,2]
[372881195,1752791438396,-460.0,0.00016773,2]
[372881196,1752791438406,-1232.91,0.00016773,2]
[372881197,1752791438415,-460.0,0.00016774,2]
[372881198,1752791438424,-491.62,0.00016774,2]
[372881199,1752791438434,-460.0,0.00016774,2]
[372881200,1752791438443,-2715.03,0.00016774,2]
[372881201,1752791438453,-460.0,0.00016774,2]
[372881202,1752791438464,-460.0,0.00016774,2]
[372881203,1752791438473,-585.93,0.00016774,2]
[372881204,1752791438483,-460.0,0.00016774,2]
[372881205,1752791438494,-460.0,0.00016774,2]
[372881206,1752791438506,-460.0,0.00016774,2]
[372881207,1752791438515,-500.0,0.00016776,2]
[372881208,1752791438525,-460.0,0.00016776,2]
[372881209,1752791438534,-460.0,0.00016776,2]
[372881210,1752791438543,-852.82,0.00016776,2]
[372881211,1752791438553,-460.0,0.00016776,2]
[372881212,1752791438562,-460.0,0.00016776,2]
[372881213,1752791438572,-460.0,0.00016776,2]
[372881214,1752791438581,-460.0,0.00016776,2]
[372881215,1752791438591,-460.0,0.00016776,2]
[372881216,1752791438600,-460.0,0.00016776,2]
[372881217,1752791438610,-460.0,0.00016776,2]
[372881218,1752791438619,-150.0,0.00016954,2]
[372881219,1752791438628,-460.0,0.00017047,2]
[372881220,1752791438638,-1232.91,0.00017047,2]
[372881221,1752791438647,-460.0,0.00017048,2]
[372881222,1752791438657,-491.62,0.00017048,2]
[372881223,1752791438666,-460.0,0.00017048,2]
[372881224,1752791438676,-2715.03,0.00017048,2]
[372881225,1752791438686,-460.0,0.00017048,2]
[372881226,1752791438695,-460.0,0.00017048,2]
[372881227,1752791438705,-585.93,0.00017048,2]
[372881228,1752791438714,-460.0,0.00017048,2]
[372881229,1752791438723,-460.0,0.00017048,2]
[372881230,1752791438733,-460.0,0.0001705,2]
[372881231,1752791438743,-460.0,0.0001705,2]
[372881232,1752791438752,-852.82,0.0001705,2]
[372881233,1752791438764,-471.6909073,0.0001705,2]
[372881234,1752791438774,-460.0,0.0001705,2]
[372881235,1752791438783,-460.0,0.0001705,2]
[372881236,1752791438793,-460.0,0.0001705,2]
[372881237,1752791438803,-468.78653302,0.0001705,2]
[372881238,1752791438812,-460.0,0.0001705,2]
[372881239,1752791438822,-460.0,0.0001705,2]
[372881240,1752791438832,-500.0,0.00017121,2]
[372881241,1752791438841,-500.0,0.0001732,2]
[372881242,1752791438851,-500.0,0.0001732,2]
[372881243,1752791438860,-500.0,0.0001732,2]
[372881244,1752791438870,-301.46877249,0.0001732,2]
[372881245,1752791438879,-500.0,0.0001732,2]
[372881246,1752791438889,-460.0,0.00017321,2]
[372881247,1752791438899,-460.0,0.00017321,2]
[372881248,1752791438908,-1232.91,0.00017321,2]
[372881249,1752791438918,-460.0,0.00017322,2]
[372881250,1752791438928,-491.62,0.00017322,2]
[372881251,1752791438937,-460.0,0.00017322,2]
[372881252,1752791438947,-2715.03,0.00017322,2]
[372881253,1752791438956,-460.0,0.00017322,2]
[372881254,1752791438967,-585.93,0.00017322,2]
[372881255,1752791438976,-460.0,0.00017322,2]
[372881256,1752791438986,-335.9346615,0.00017324,2]
[372881257,1752791438996,-460.0,0.00017324,2]
[372881258,1752791439007,-460.0,0.00017324,2]
[372881259,1752791439017,-852.82,0.00017324,2]
[372881260,1752791439028,-460.0,0.00017324,2]
[372881261,1752791439037,-460.0,0.00017324,2]
[372881262,1752791439047,-460.0,0.00017324,2]
[372881263,1752791439056,-460.0,0.00017324,2]
[372881264,1752791439066,-460.0,0.00017324,2]
[372881265,1752791439075,-460.0,0.00017595,2]
[372881266,1752791439085,-460.0,0.00017595,2]
[372881267,1752791439094,-1232.91,0.00017595,2]
[372881268,1752791439104,-114.35170373,0.00017596,2]
[372881269,1752791439114,-493.51,0.00017596,2]
[372881270,1752791439124,-460.0,0.00017596,2]
[372881271,1752791439138,-482.4,0.00017596,2]
[372881272,1752791439147,-460.0,0.00017596,2]
[372881273,1752791439157,-460.0,0.00017596,2]
[372881274,1752791439168,-460.0,0.00017596,2]
[372881275,1752791439179,-720.78,0.00017596,2]
[372881276,1752791439189,-1521.8,0.00017596,2]
[372881277,1752791439199,-460.0,0.00017596,2]
[372881278,1752791439212,-556.21,0.00017596,2]
[372881279,1752791439222,-513.87,0.00017596,2]
[372881280,1752791439231,-460.0,0.00017596,2]
[372881281,1752791439241,-460.0,0.00017596,2]
[372881282,1752791439251,-460.0,0.00017596,2]
[372881283,1752791439262,-460.0,0.00017596,2]
[372881284,1752791439272,-460.0,0.00017596,2]
[372881285,1752791439281,-743.51,0.00017596,2]
[372881286,1752791439291,-643.68,0.00017596,2]
[372881287,1752791439300,-460.0,0.00017596,2]
[372881288,1752791439310,-827.97,0.00017596,2]
[372881289,1752791439319,-460.0,0.00017596,2]
[372881290,1752791439328,-460.0,0.00017596,2]
[372881291,1752791439338,-460.0,0.00017596,2]
[372881292,1752791439347,-491.62,0.00017596,2]
[372881293,1752791439356,-460.0,0.00017596,2]
[372881294,1752791439366,-2715.03,0.00017596,2]
[372881295,1752791439376,-460.0,0.00017596,2]
[372881296,1752791439385,-585.93,0.00017596,2]
[372881297,1752791439395,-460.0,0.00017596,2]
[372881298,1752791439404,-460.0,0.00017597,2]
[372881299,1752791439413,-460.0,0.00017597,2]
[372881300,1752791439423,-1644.73,0.00017597,2]